bitfinex/quotes_SOLUSD_20250101
["timestamp","ask_amount","ask_price","bid_price","bid_amount"]
[1735748738029,1.6132,191.52,191.46,10.55454126]
[1735748739310,1.6304,191.56,191.49,10.55454126]
[1735748739512,1.6304,191.56,191.5,10.55454126]
[1735748740433,1.6304,191.56,191.49,10.55454126]
[1735748742039,27.8308,191.55,191.48,10.55454126]
[1735748742235,27.8308,191.55,191.44,23.776884]
[1735748742236,27.8308,191.55,191.47,10.55454126]
[1735748742439,27.8308,191.55,191.48,10.55454126]
[1735748748915,27.8308,191.55,191.44,23.776884]
[1735748749121,27.8308,191.55,191.39,7.7218]
[1735748749327,27.8308,191.55,191.43,10.55454126]
[1735748749954,27.8308,191.55,191.45,10.55454126]
[1735748750125,27.8308,191.55,191.46,10.55454126]
[1735748750522,7.8308,191.55,191.46,10.55454126]
[1735748750718,7.8308,191.55,191.48,10.55454126]
[1735748751541,7.8308,191.55,191.44,20.0]
[1735748751733,7.8308,191.55,191.47,10.55454126]
[1735748758644,27.8321,191.52,191.39,7.7218]
[1735748758851,27.8321,191.52,191.43,10.55454126]
[1735748759352,27.8321,191.52,191.44,10.55454126]
[1735748759757,27.8321,191.52,191.43,10.55454126]
[1735748760070,27.8321,191.52,191.42,10.55454126]
[1735748760358,20.0,191.48,191.34,8.113]
[1735748760557,20.0,191.48,191.4,10.55454126]
[1735748760938,20.0,191.48,191.39,10.55454126]
[1735748761539,7.8341,191.47,191.39,10.55454126]
[1735748763062,7.8341,191.47,191.4,10.55454126]
[1735748763883,7.8341,191.47,191.41,10.55454126]
[1735748764751,7.8341,191.47,191.4,10.55454126]
[1735748765450,1.608,191.5,191.43,10.55454126]
[1735748766661,7.8333,191.49,191.43,10.55454126]
[1735748766861,7.8333,191.49,191.42,10.55454126]
[1735748767461,7.8333,191.49,191.43,10.55454126]
[1735748768660,7.8333,191.49,191.44,10.55454126]
[1735748769271,7.8333,191.49,191.43,10.55454126]
[1735748773160,7.8333,191.49,191.42,10.55454126]
[1735748773993,7.8333,191.49,191.43,10.55454126]
[1735748776758,7.8333,191.49,191.44,10.55454126]
[1735748778277,1.608,191.5,191.35,5.78356328]
[1735748778278,1.608,191.5,191.45,10.55454126]
[1735748778471,7.8321,191.52,191.45,10.55454126]
[1735748779757,1.5973,191.54,191.48,10.55454126]
[1735748779961,1.5973,191.54,191.49,10.55454126]
[1735748780584,1.5973,191.54,191.48,10.55454126]
[1735748782386,1.5973,191.54,191.41,31.664284]
[1735748782387,1.5973,191.54,191.49,10.55454126]
[1735748783099,7.8309,191.55,191.5,10.55454126]
[1735748783472,7.8309,191.55,191.49,10.55454126]
[1735748783989,7.8309,191.55,191.5,10.55454126]
[1735748784795,9.4268,191.59,191.51,10.55454126]
[1735748785295,9.4268,191.59,191.53,10.55454126]
[1735748785793,9.4268,191.59,191.52,10.55454126]
[1735748786481,9.4268,191.59,191.53,10.55454126]
[1735748786669,9.4268,191.59,191.51,10.55454126]
[1735748788667,9.4268,191.59,191.5,10.55454126]
[1735748792315,9.4268,191.59,191.49,10.55454126]
[1735748792914,20.0,191.56,191.47,10.55454126]
[1735748793271,20.0,191.56,191.48,10.55454126]
[1735748793483,20.0,191.56,191.49,10.55454126]
[1735748795686,20.0,191.56,191.5,10.55454126]
[1735748796085,7.8304,191.57,191.5,10.55454126]
[1735748796485,7.8304,191.57,191.51,10.55454126]
[1735748799720,7.8304,191.57,191.51,10.55454126]
[1735748799902,7.8289,191.6,191.53,10.55454126]
[1735748800106,7.8289,191.6,191.54,10.55454126]
[1735748800410,5.65583167,191.63,191.57,10.55454126]
[1735748800724,9.3348,191.64,191.57,10.55454126]
[1735748800907,9.3348,191.64,191.5,43.0011217]
[1735748800908,9.3348,191.64,191.56,10.55454126]
[1735748801493,7.8259,191.67,191.58,10.55454126]
[1735748802825,7.8259,191.67,191.57,10.55454126]
[1735748803207,7.8259,191.67,191.59,23.776884]
[1735748803400,7.8259,191.67,191.59,34.33142526]
[1735748803795,7.8259,191.67,191.6,10.55454126]
[1735748807517,7.8259,191.67,191.56,23.776884]
[1735748807703,7.8259,191.67,191.59,10.55454126]
[1735748808615,7.8259,191.67,191.56,23.776884]
[1735748808814,7.8259,191.67,191.58,10.55454126]
[1735748811525,7.8259,191.67,191.57,10.55454126]
[1735748811905,7.8259,191.67,191.56,23.776884]
[1735748811906,7.8259,191.67,191.56,10.55454126]
[1735748812220,7.8259,191.67,191.57,10.55454126]
[1735748812809,7.8259,191.67,191.58,10.55454126]
[1735748814409,7.8259,191.67,191.57,10.55454126]
[1735748816635,27.8273,191.64,191.53,23.776884]
[1735748816933,34.3342,191.64,191.55,10.55454126]
[1735748817440,34.3342,191.64,191.5,50.07676504]
[1735748817441,1.613,191.63,191.5,7.8586]
[1735748817621,1.613,191.63,191.52,10.55454126]
[1735748818212,1.613,191.63,191.53,10.55454126]
[1735748818625,7.8279,191.62,191.53,10.55454126]
[1735748818915,7.8279,191.62,191.52,10.55454126]
[1735748819128,23.4838,191.62,191.52,10.55454126]
[1735748820328,7.8296,191.58,191.51,10.55454126]
[1735748820530,7.8296,191.58,191.49,10.55454126]
[1735748820734,7.8296,191.58,191.48,10.55454126]
[1735748821539,1.613,191.57,191.47,10.55454126]
[1735748822140,1.613,191.57,191.48,10.55454126]
[1735748822736,7.8304,191.56,191.48,10.55454126]
[1735748827132,7.8304,191.56,191.49,10.55454126]
[1735748827333,1.613,191.57,191.51,10.55454126]
[1735748827537,21.613,191.57,191.5,10.55454126]
[1735748828048,5.65583167,191.6,191.46,24.56001955]
[1735748828234,9.4409,191.63,191.55,10.55454126]
[1735748828832,9.4409,191.63,191.54,10.55454126]
[1735748829022,5.65583167,191.62,191.53,10.55454126]
[1735748829223,5.65583167,191.62,191.54,10.55454126]
[1735748830048,1.613,191.63,191.57,10.55454126]
[1735748833150,1.613,191.63,191.56,10.55454126]
[1735748836736,1.613,191.63,191.54,10.55454126]
[1735748837043,7.8279,191.62,191.53,23.776884]
[1735748838339,7.8279,191.62,191.53,10.55454126]
[1735748841761,7.8279,191.62,191.53,23.776884]
[1735748842949,7.8279,191.62,191.53,10.55454126]
[1735748843339,7.8279,191.62,191.55,23.776884]
[1735748843539,7.8279,191.62,191.55,10.55454126]
[1735748844068,7.8279,191.62,191.47,6.6318]
[1735748844248,7.8279,191.62,191.52,10.55454126]
[1735748844965,7.8279,191.62,191.53,23.776884]
[1735748846655,7.8279,191.62,191.53,10.55454126]
[1735748847751,7.8279,191.62,191.55,23.776884]
[1735748848460,7.8279,191.62,191.53,10.55454126]
[1735748848659,7.8279,191.62,191.54,23.776884]
[1735748851570,7.8279,191.62,191.54,10.55454126]
[1735748853175,1.613,191.63,191.56,10.55454126]
[1735748853350,7.8267,191.66,191.56,10.55454126]
[1735748853753,7.8267,191.66,191.56,23.776884]
[1735748854956,12.62045044,191.66,191.54,10.55454126]
[1735748855160,5.65583167,191.65,191.53,12.07084126]
[1735748855456,5.65583167,191.65,191.54,23.776884]
[1735748855974,27.8271,191.64,191.5,20.0]
[1735748856163,1.593,191.63,191.5,20.0]
[1735748856366,6.98184761,191.63,191.51,10.55454126]
[1735748856581,6.98184761,191.63,191.51,34.33142526]
[1735748856752,6.98184761,191.63,191.53,10.55454126]
[1735748857273,6.98184761,191.63,191.54,10.55454126]
[1735748857274,7.8279,191.62,191.54,10.55454126]
[1735748858354,7.8279,191.62,191.5,20.0]
[1735748858650,13.48373167,191.62,191.5,30.55454126]
[1735748859579,13.48373167,191.62,191.51,34.33142526]
[1735748863766,7.8288,191.6,191.51,34.33142526]
[1735748864266,7.8288,191.6,191.49,1.5163]
[1735748864465,7.8288,191.6,191.49,12.07084126]
[1735748864673,7.8288,191.6,191.5,23.776884]
[1735748868066,7.8288,191.6,191.48,10.55454126]
[1735748868267,7.8288,191.6,191.44,10.575473]
[1735748868490,1.6386,191.59,191.46,10.55454126]
[1735748868791,6.43235044,191.59,191.48,43.776884]
[1735748868972,6.43235044,191.59,191.44,1.6223]
[1735748868973,20.0,191.56,191.44,1.6223]
[1735748869178,20.0,191.56,191.45,10.55454126]
[1735748869396,7.8308,191.55,191.45,23.776884]
[1735748869706,7.8308,191.55,191.44,12.17684126]
[1735748869894,7.8308,191.55,191.43,8.1701657]
[1735748870089,7.8308,191.55,191.44,10.55454126]
[1735748870268,7.8308,191.55,191.45,23.776884]
[1735748870997,7.8308,191.55,191.45,10.55454126]
[1735748874988,15.8784,191.53,191.39,9.7924657]
[1735748875194,15.8784,191.53,191.39,20.34700696]
[1735748875595,15.8784,191.53,191.4,23.776884]
[1735748875799,15.8784,191.53,191.4,34.33142526]
[1735748876482,31.5417,191.53,191.4,34.33142526]
[1735748877199,31.5417,191.53,191.4,23.776884]
[1735748877373,31.5417,191.53,191.36,8.1701657]
[1735748877374,1.644,191.48,191.36,8.1701657]
[1735748877573,26.4028,191.46,191.36,8.1701657]
[1735748878301,26.4028,191.46,191.33,18.72470696]
[1735748878496,26.4028,191.46,191.33,8.1701657]
[1735748878706,7.8349,191.45,191.33,18.72470696]
[1735748879005,7.8349,191.45,191.34,23.776884]
[1735748879498,7.8349,191.45,191.32,8.1701657]
[1735748879793,7.8349,191.45,191.33,23.776884]
[1735748880492,7.8349,191.45,191.32,23.776884]
[1735748880686,20.0,191.42,191.32,23.776884]
[1735748880872,1.644,191.41,191.3,17.18414126]
[1735748881073,1.644,191.41,191.31,34.33142526]
[1735748881593,1.644,191.45,191.36,10.55454126]
[1735748881895,1.644,191.45,191.38,10.55454126]
[1735748882285,1.644,191.45,191.37,10.55454126]
[1735748882484,1.644,191.45,191.37,23.776884]
[1735748882684,1.644,191.45,191.37,34.33142526]
[1735748883089,1.644,191.45,191.38,10.55454126]
[1735748883675,1.644,191.45,191.37,10.55454126]
[1735748884171,1.644,191.45,191.38,10.55454126]
[1735748884380,1.644,191.45,191.4,23.776884]
[1735748884679,27.8333,191.49,191.4,23.776884]
[1735748885283,27.8333,191.49,191.4,10.55454126]
[1735748885697,1.644,191.5,191.43,10.55454126]
[1735748885993,1.644,191.5,191.44,23.776884]
[1735748886294,1.644,191.5,191.44,10.55454126]
[1735748886888,1.644,191.5,191.44,23.776884]
[1735748888301,1.644,191.5,191.42,10.55454126]
[1735748889303,9.477,191.5,191.41,20.0]
[1735748890283,9.477,191.5,191.41,23.776884]
[1735748890999,9.477,191.5,191.4,23.776884]
[1735748894209,9.477,191.5,191.41,10.55454126]
[1735748894415,9.477,191.5,191.42,10.55454126]
[1735748896508,1.644,191.5,191.44,23.776884]
[1735748899296,7.8317,191.53,191.44,10.55454126]
[1735748899512,7.9716,191.55,191.47,10.55454126]
[1735748899712,15.6625,191.54,191.34,14.7586657]
[1735748899890,15.6625,191.54,191.4,10.55454126]
[1735748900499,15.6625,191.54,191.4,23.776884]
[1735748900814,15.6625,191.54,191.4,34.33142526]
[1735748901495,20.0,191.51,191.4,34.33142526]
[1735748901705,20.0,191.51,191.4,23.776884]
[1735748901890,27.8328,191.51,191.4,23.776884]
[1735748905110,27.8328,191.51,191.4,34.33142526]
[1735748910141,27.8328,191.51,191.42,23.776884]
[1735748911000,27.8328,191.51,191.41,23.776884]
[1735748911825,7.8333,191.49,191.38,10.55454126]
[1735748912320,7.8333,191.49,191.39,23.776884]
[1735748912494,7.8333,191.49,191.41,23.776884]
[1735748913534,7.8333,191.49,191.38,34.33142526]
[1735748913711,20.0,191.45,191.34,18.72470696]
[1735748914034,1.5511,191.44,191.34,8.1701657]
[1735748914441,1.5511,191.44,191.35,23.776884]
[1735748915012,9.3868,191.44,191.34,23.776884]
[1735748915646,9.3868,191.44,191.34,10.55454126]
[1735748916710,9.3868,191.44,191.35,10.55454126]
[1735748917345,9.3868,191.44,191.32,23.776884]
[1735748917346,9.3868,191.44,191.34,10.55454126]
[1735748917907,9.3868,191.44,191.33,10.55454126]
[1735748918432,9.3868,191.44,191.34,23.776884]
[1735748919152,9.3868,191.44,191.34,10.55454126]
[1735748919739,9.3868,191.44,191.35,10.55454126]
[1735748922144,9.3868,191.44,191.33,10.55454126]
[1735748922341,9.3868,191.44,191.32,10.55454126]
[1735748923904,9.3868,191.44,191.33,10.55454126]
[1735748925208,9.3868,191.44,191.34,10.55454126]
[1735748925414,9.3868,191.44,191.35,10.55454126]
[1735748928641,9.3868,191.44,191.33,20.0]
[1735748928950,9.3868,191.44,191.34,23.776884]
[1735748929431,9.3868,191.44,191.33,23.776884]
[1735748929642,9.3868,191.44,191.33,34.33142526]
[1735748931117,9.3868,191.44,191.33,23.776884]
[1735748931319,9.3868,191.44,191.32,30.55454126]
[1735748931843,9.3868,191.44,191.33,10.55454126]
[1735748933041,9.3868,191.44,191.34,23.776884]
[1735748933206,9.3868,191.44,191.34,34.33142526]
[1735748939033,9.3868,191.44,191.33,34.33142526]
[1735748940232,9.3868,191.44,191.34,10.55454126]
[1735748945042,1.5511,191.44,191.37,23.776884]
[1735748945417,1.5511,191.44,191.38,10.55454126]
[1735748946446,1.5511,191.44,191.36,10.55454126]
[1735748946618,1.5511,191.44,191.37,10.55454126]
[1735748948531,1.5511,191.44,191.36,10.55454126]
[1735748950619,1.5511,191.44,191.35,10.55454126]
[1735748950824,1.5511,191.44,191.34,10.55454126]
[1735748951230,1.5511,191.44,191.35,10.55454126]
[1735748953949,1.5511,191.44,191.36,23.776884]
[1735748955149,1.5511,191.44,191.38,23.776884]
[1735748955346,1.5511,191.44,191.39,10.55454126]
[1735748957261,1.5511,191.44,191.38,10.55454126]
[1735748957460,1.5511,191.44,191.38,23.776884]
[1735748958965,1.5511,191.44,191.35,10.55454126]
[1735748959147,1.5511,191.44,191.34,30.55454126]
[1735748959341,1.5511,191.44,191.34,10.55454126]
[1735748960143,1.5511,191.44,191.34,34.33142526]
[1735748960352,9.3865,191.44,191.35,23.776884]
[1735748960539,9.3865,191.44,191.34,10.55454126]
[1735748961836,9.3865,191.44,191.34,23.776884]
[1735748962242,9.3865,191.44,191.3,8.1701657]
[1735748962469,9.3865,191.44,191.32,10.55454126]
[1735748968060,20.0,191.41,191.28,8.1701657]
[1735748968362,34.4906,191.41,191.31,10.55454126]
[1735748969050,34.4906,191.41,191.32,10.55454126]
[1735748974166,34.4906,191.41,191.31,10.55454126]
[1735748975442,34.4906,191.41,191.3,10.55454126]
[1735748977256,34.4906,191.41,191.31,10.55454126]
[1735748977458,34.4906,191.41,191.32,10.55454126]
[1735748977983,26.6537,191.41,191.34,10.55454126]
[1735748978279,6.6537,191.41,191.34,34.33142526]
[1735748978463,7.56887232,191.44,191.35,10.55454126]
[1735748979279,7.56887232,191.44,191.3,42.21816504]
[1735748979280,7.56887232,191.44,191.36,10.55454126]
[1735748979595,1.5511,191.44,191.38,10.55454126]
[1735748980094,1.6613,191.49,191.41,23.776884]
[1735748980258,1.6613,191.49,191.41,10.55454126]
[1735748980456,1.6613,191.49,191.4,10.55454126]
[1735748980675,1.6613,191.49,191.39,10.55454126]
[1735748981261,23.776884,191.48,191.39,10.55454126]
[1735748983057,31.610584,191.48,191.37,20.0]
[1735748983257,31.610584,191.48,191.37,30.55454126]
[1735748984159,31.610584,191.48,191.36,30.55454126]
[1735748984466,37.62835632,191.48,191.36,30.55454126]
[1735748984975,20.0,191.45,191.36,30.55454126]
[1735748985183,23.776884,191.43,191.33,10.55454126]
[1735748985381,23.776884,191.43,191.32,18.72470696]
[1735748986288,23.776884,191.43,191.33,10.55454126]
[1735748987886,8.3097,191.44,191.33,10.55454126]
[1735748988093,8.3097,191.44,191.34,10.55454126]
[1735748989482,8.3097,191.44,191.33,10.55454126]
[1735748989667,8.3097,191.44,191.34,10.55454126]
[1735748990083,8.3097,191.44,191.33,10.55454126]
[1735748991165,8.3097,191.44,191.34,10.55454126]
[1735748991569,8.3097,191.44,191.33,10.55454126]
[1735748993095,31.612584,191.43,191.34,20.0]
[1735748993974,31.612584,191.43,191.32,10.55454126]
[1735748993975,31.612584,191.43,191.32,30.55454126]
[1735748994191,31.612584,191.43,191.32,20.0]
[1735748995015,31.612584,191.43,191.32,30.55454126]
[1735748997202,7.8357,191.43,191.32,30.55454126]
[1735748999708,23.776884,191.42,191.32,20.0]
[1735749000902,23.776884,191.42,191.3,10.55454126]
[1735749001093,7.8365,191.41,191.3,10.55454126]
[1735749001609,7.8365,191.41,191.27,14.5560657]
[1735749001610,23.776884,191.4,191.29,10.55454126]
[1735749002011,8.3097,191.44,191.33,10.55454126]
[1735749002606,23.776884,191.43,191.33,10.55454126]
[1735749003521,8.3097,191.44,191.33,10.55454126]
[1735749003686,7.8357,191.43,191.32,10.55454126]
[1735749003882,23.776884,191.42,191.31,20.0]
[1735749005827,20.0,191.4,191.31,20.0]
[1735749005987,21.5832,191.38,191.27,8.1701657]
[1735749006187,29.999484,191.37,191.27,8.1701657]
[1735749007110,20.0,191.34,191.27,8.1701657]
[1735749007309,27.8396,191.34,191.26,16.3403314]
[1735749007616,27.8396,191.34,191.22,10.55454126]
[1735749008199,23.776884,191.33,191.21,8.1701657]
[1735749008606,23.776884,191.33,191.23,20.0]
[1735749009305,6.2226,191.3,191.18,25.06640696]
[1735749009511,23.776884,191.29,191.18,8.1701657]
[1735749009804,23.776884,191.29,191.19,20.0]
[1735749010386,23.776884,191.29,191.15,40.85082851]
[1735749010387,20.0,191.26,191.15,40.85082851]
[1735749010589,20.0,191.26,191.15,8.1701657]
[1735749010807,1.5661,191.25,191.15,8.1701657]
[1735749011499,21.5661,191.25,191.14,12.06544126]
[1735749012508,21.5661,191.25,191.16,20.0]
[1735749013010,23.776884,191.24,191.16,20.0]
[1735749013493,21.5661,191.25,191.16,20.0]
[1735749013690,1.5661,191.25,191.17,10.55454126]
[1735749013911,5.9453842,191.29,191.18,10.55454126]
[1735749014099,29.7222682,191.29,191.19,10.55454126]
[1735749015794,29.7222682,191.29,191.19,20.0]
[1735749015996,23.776884,191.28,191.19,20.0]
[1735749016314,23.776884,191.28,191.15,10.55454126]
[1735749016494,13.7869842,191.29,191.18,20.0]
[1735749016695,20.0,191.26,191.16,10.55454126]
[1735749017007,20.0,191.26,191.14,23.776884]
[1735749017211,20.0,191.26,191.17,20.0]
[1735749017611,20.0,191.26,191.13,6.418]
[1735749017802,20.0,191.25,191.13,16.97254126]
[1735749019007,1.5661,191.24,191.15,20.0]
[1735749019191,6.4931,191.23,191.12,10.55454126]
[1735749019592,6.4931,191.23,191.1,1.6242]
[1735749019809,6.4931,191.23,191.12,30.55454126]
[1735749021210,6.4931,191.23,191.14,20.0]
[1735749021397,23.776884,191.21,191.09,10.55454126]
[1735749023114,23.776884,191.19,191.08,20.0]
[1735749023295,23.776884,191.19,191.07,10.55454126]
[1735749023497,96.976884,191.19,191.06,10.55454126]
[1735749023693,96.976884,191.17,191.02,0.78483737]
[1735749023894,1.5661,191.14,191.03,10.55454126]
[1735749024706,1.5661,191.14,191.02,10.55454126]
[1735749025505,23.776884,191.13,191.01,10.55454126]
[1735749026205,23.776884,191.13,191.0,21.6242]
[1735749026412,23.776884,191.13,191.0,38.12558141]
[1735749026922,23.776884,191.13,191.01,16.50138141]
[1735749027224,23.776884,191.13,191.0,21.6242]
[1735749027420,23.776884,191.13,191.01,16.50138141]
[1735749028405,23.776884,191.11,191.0,20.0]
[1735749028607,20.0,191.08,190.98,16.50138141]
[1735749028813,1.6299,191.07,190.97,16.50138141]
[1735749029009,1.6299,191.07,190.95,1.6238]
[1735749029010,1.6299,191.07,190.96,16.50138141]
[1735749029316,1.6299,191.07,190.95,16.50138141]
[1735749029317,23.776884,191.06,190.95,16.50138141]
[1735749030218,1.6299,191.07,190.99,16.50138141]
[1735749030712,1.6299,191.07,190.98,16.50138141]
[1735749030911,1.6299,191.07,190.96,16.50138141]
[1735749032698,23.776884,191.06,190.95,16.50138141]
[1735749033322,1.6299,191.07,190.95,36.50138141]
[1735749034226,1.6299,191.07,190.95,16.50138141]
[1735749034435,20.0,191.04,190.95,16.50138141]
[1735749035145,74.8299,191.07,190.95,16.50138141]
[1735749035705,74.8299,191.07,190.99,16.50138141]
[1735749035706,1.6299,191.07,190.99,16.50138141]
[1735749035909,1.6299,191.07,191.0,16.50138141]
[1735749036102,1.6299,191.07,191.02,16.50138141]
[1735749036321,1.6299,191.12,191.03,16.50138141]
[1735749036716,1.6299,191.12,191.02,16.50138141]
[1735749037611,1.6299,191.12,191.01,16.50138141]
[1735749037811,1.6299,191.12,190.99,20.0]
[1735749037812,1.6299,191.12,191.0,16.50138141]
[1735749038226,9.4785,191.12,190.99,16.50138141]
[1735749038530,20.0,191.06,190.93,1.6355]
[1735749038703,1.6599,191.05,190.93,1.6355]
[1735749038907,1.6599,191.05,190.94,36.50138141]
[1735749038908,6.1891,191.04,190.94,36.50138141]
[1735749040434,6.1891,191.04,190.94,20.0]
[1735749040943,6.1891,191.04,190.93,16.50138141]
[1735749043142,6.1891,191.04,190.92,16.50138141]
[1735749043824,6.1891,191.04,190.94,16.50138141]
[1735749044524,6.1891,191.04,190.95,16.50138141]
[1735749044710,6.1891,191.04,190.96,16.50138141]
[1735749045132,6.1891,191.04,190.95,16.50138141]
[1735749045739,6.1891,191.04,190.96,16.50138141]
[1735749046039,6.1891,191.04,190.94,36.50138141]
[1735749046637,6.1891,191.04,190.95,16.50138141]
[1735749047016,6.1891,191.04,190.97,16.50138141]
[1735749047414,74.8599,191.05,190.97,16.50138141]
[1735749048957,74.8599,191.05,190.96,16.50138141]
[1735749049321,1.6599,191.05,190.96,16.50138141]
[1735749049531,1.6599,191.05,190.95,36.50138141]
[1735749050928,1.6599,191.05,190.96,16.50138141]
[1735749052446,1.6599,191.05,190.95,36.50138141]
[1735749052651,1.6599,191.05,190.95,20.0]
[1735749052832,20.0,191.04,190.94,16.50138141]
[1735749055456,20.0,191.03,190.94,16.50138141]
[1735749056256,20.0,191.03,190.93,16.50138141]
[1735749056823,20.0,191.03,190.9,23.776884]
[1735749057040,20.0,191.03,190.92,16.50138141]
[1735749057238,104.829384,191.02,190.91,16.50138141]
[1735749057455,6.571,191.01,190.91,16.50138141]
[1735749057654,1.5384,191.0,190.9,16.50138141]
[1735749058339,1.5384,191.0,190.9,10.57301526]
[1735749060144,1.5384,191.0,190.91,10.57301526]
[1735749060452,1.5384,191.0,190.92,16.51822452]
[1735749061029,1.5384,191.0,190.9,23.776884]
[1735749061451,1.5384,191.0,190.91,16.51822452]
[1735749061628,1.5384,191.0,190.9,16.51822452]
[1735749062747,20.0,190.98,190.89,16.51822452]
[1735749062952,20.0,190.98,190.88,16.51822452]
[1735749063745,93.2,190.98,190.85,8.1701657]
[1735749063949,23.776884,190.97,190.86,16.51822452]
[1735749064156,1.5384,190.95,190.84,24.68839022]
[1735749064363,20.0,190.93,190.84,24.68839022]
[1735749064853,20.0,190.93,190.84,16.51822452]
[1735749065228,20.0,190.93,190.85,16.51822452]
[1735749065424,20.0,190.93,190.84,16.51822452]
[1735749065655,6.571,190.94,190.84,16.51822452]
[1735749065825,20.0,190.93,190.85,16.51822452]
[1735749066030,20.0,190.93,190.84,16.51822452]
[1735749066232,20.0,190.93,190.83,16.51822452]
[1735749066758,6.571,190.94,190.83,16.51822452]
[1735749067069,6.571,190.94,190.85,16.51822452]
[1735749068151,23.776884,190.93,190.83,16.51822452]
[1735749068451,14.4268,190.94,190.83,16.51822452]
[1735749068653,14.4268,190.94,190.84,16.51822452]
[1735749069031,35.0,191.01,190.8,23.776884]
[1735749069032,1.5388,190.99,190.92,16.51822452]
[1735749069448,1.5388,190.99,190.91,16.51822452]
[1735749070157,1.5388,190.99,190.92,16.51822452]
[1735749071164,1.5388,190.99,190.91,16.51822452]
[1735749071670,1.5388,190.99,190.92,16.51822452]
[1735749072260,1.5388,190.99,190.91,16.51822452]
[1735749072459,1.5388,190.99,190.89,16.51822452]
[1735749072656,1.5388,190.99,190.91,16.51822452]
[1735749073442,1.5388,190.99,190.92,16.51822452]
[1735749073667,1.5388,190.99,190.93,16.51822452]
[1735749074264,1.5388,191.04,190.96,16.51822452]
[1735749074452,1.5388,191.04,190.97,16.51822452]
[1735749074653,1.5388,191.04,190.98,16.51822452]
[1735749074848,1.5388,191.09,190.99,16.51822452]
[1735749075052,74.7388,191.09,190.99,16.51822452]
[1735749075254,1.5388,191.09,191.0,16.51822452]
[1735749075563,1.5388,191.09,191.01,16.51822452]
[1735749076171,1.5388,191.09,191.0,16.51822452]
[1735749077251,1.5388,191.09,191.01,16.51822452]
[1735749078666,1.5388,191.09,191.0,36.51822452]
[1735749079176,1.5388,191.09,190.97,16.51822452]
[1735749079463,1.5388,191.09,190.98,36.51822452]
[1735749079850,1.5388,191.09,190.99,16.51822452]
[1735749082855,1.5388,191.09,191.01,16.51822452]
[1735749083051,1.5388,191.09,190.99,16.51822452]
[1735749083355,1.5388,191.09,191.0,16.51822452]
[1735749084146,1.5388,191.09,190.98,36.51822452]
[1735749084352,9.3886,191.09,190.98,20.0]
[1735749084555,9.3886,191.09,190.96,16.51822452]
[1735749084556,82.5886,191.09,190.96,16.51822452]
[1735749084772,23.776884,191.08,190.96,16.51822452]
[1735749085881,73.2,191.06,190.95,36.51822452]
[1735749086255,73.2,191.06,190.96,16.51822452]
[1735749087073,73.2,191.06,190.98,16.51822452]
[1735749088177,1.5388,191.09,191.02,16.51822452]
[1735749088375,74.7388,191.09,190.99,16.51822452]
[1735749089175,23.776884,191.08,190.97,36.51822452]
[1735749089474,23.776884,191.08,190.97,20.0]
[1735749090386,31.626984,191.08,190.97,16.51822452]
[1735749091682,7.8501,191.08,190.98,16.51822452]
[1735749091893,74.7388,191.09,190.98,16.51822452]
[1735749093662,74.7388,191.09,190.97,36.51822452]
[1735749094563,73.2,191.08,190.97,36.51822452]
[1735749095586,73.2,191.08,190.97,20.0]
[1735749096379,7.8505,191.07,190.97,20.0]
[1735749096887,73.2,191.08,190.97,36.51822452]
[1735749097587,73.2,191.07,190.98,16.51822452]
[1735749098292,73.2,191.07,190.92,8.1701657]
[1735749098293,73.2,191.07,190.96,16.51822452]
[1735749099370,73.2,191.07,190.97,16.51822452]
[1735749100883,73.2,191.07,190.98,16.51822452]
[1735749101490,73.2,191.07,190.97,16.51822452]
[1735749101892,73.2,191.07,190.98,16.51822452]
[1735749102386,73.2,191.07,190.98,10.5637806]
[1735749103584,20.0,191.06,190.98,10.5637806]
[1735749105799,20.0,191.06,190.97,10.5637806]
[1735749106293,20.0,191.06,190.96,20.0]
[1735749110083,1.5008,191.03,190.91,7.42275831]